bitfinex/quotes_SOLUSD_20250930
["timestamp","ask_amount","ask_price","bid_price","bid_amount"]
[1759240106351,19.3,209.6,209.56,40.63570861]
[1759240106515,19.3,209.6,209.59,4.33570861]
[1759240106717,19.3,209.6,209.59,9.10692861]
[1759240107024,0.7,209.64,209.59,57.33497861]
[1759240107025,19.3,209.63,209.59,57.33497861]
[1759240107223,19.3,209.7,209.62,25.13570861]
[1759240107429,0.1,209.77,209.62,25.13570861]
[1759240107430,19.3,209.66,209.65,25.13570861]
[1759240107624,20.0,209.66,209.65,20.8]
[1759240107826,19.3,209.64,209.63,40.63570861]
[1759240108026,19.3,209.61,209.6,40.63570861]
[1759240108240,19.3,209.64,209.6,40.63570861]
[1759240108537,0.7,209.63,209.61,4.33570861]
[1759240108721,19.3,209.6,209.58,4.77141665]
[1759240108931,20.0,209.6,209.58,4.77141665]
[1759240109316,19.3,209.57,209.55,4.33570861]
[1759240109744,19.3,209.57,209.56,20.8]
[1759240110041,19.3,209.57,209.56,25.13570861]
[1759240110228,19.3,209.57,209.56,4.33570861]
[1759240110748,19.3,209.59,209.57,4.77167533]
[1759240110985,19.3,209.59,209.58,4.33570861]
[1759240111329,20.0,209.59,209.58,4.33570861]
[1759240111827,48.22303719,209.68,209.58,4.33570861]
[1759240111828,19.3,209.61,209.58,4.33570861]
[1759240112031,19.3,209.61,209.6,25.13570861]
[1759240112228,20.0,209.61,209.6,20.8]
[1759240112732,19.3,209.61,209.6,29.90670097]
[1759240113147,20.0,209.61,209.6,29.90670097]
[1759240113348,19.3,209.64,209.6,41.83418188]
[1759240113546,19.3,209.61,209.6,4.77099236]
[1759240113759,20.0,209.61,209.6,25.57099236]
[1759240114130,19.3,209.59,209.58,40.63570861]
[1759240114330,19.3,209.59,209.58,9.10712486]
[1759240114531,19.3,209.59,209.57,4.7716441]
[1759240114532,20.0,209.59,209.57,4.7716441]
[1759240114740,19.3,209.59,209.57,4.7716441]
[1759240114942,0.7,209.58,209.56,4.33570861]
[1759240115143,20.0,209.57,209.54,40.63570861]
[1759240115361,19.3,209.55,209.54,4.33570861]
[1759240115568,19.3,209.55,209.53,61.43570861]
[1759240115864,19.3,209.55,209.54,4.33570861]
[1759240116061,20.0,209.55,209.51,4.77304185]
[1759240116272,19.3,209.51,209.49,9.10898113]
[1759240116459,19.3,209.51,209.49,29.90898113]
[1759240116664,20.0,209.51,209.49,9.10898113]
[1759240116847,0.7,209.5,209.48,9.10941225]
[1759240117035,19.3,209.51,209.49,4.33570861]
[1759240117361,20.0,209.51,209.5,20.8]
[1759240118365,20.0,209.51,209.49,4.33570861]
[1759240118564,20.0,209.51,209.48,4.77370364]
[1759240118865,19.3,209.49,209.48,29.90941225]
[1759240119340,19.3,209.51,209.48,29.90941225]
[1759240119540,19.3,209.49,209.48,25.57370364]
[1759240119744,19.3,209.49,209.48,29.90941225]
[1759240120042,19.3,209.49,209.48,41.84372578]
[1759240120551,20.0,209.49,209.48,29.90941225]
[1759240120872,19.3,209.47,209.46,9.10988983]
[1759240121173,20.0,209.47,209.46,4.77418122]
[1759240121354,20.0,209.47,209.46,4.33570861]
[1759240121554,19.3,209.45,209.44,23.31634706]
[1759240121756,20.0,209.45,209.44,23.31634706]
[1759240121941,19.3,209.51,209.47,20.8]
[1759240122138,19.3,209.53,209.5,4.33570861]
[1759240122369,19.3,209.53,209.52,4.33570861]
[1759240122559,0.7,209.56,209.51,57.1]
[1759240122860,19.3,209.57,209.55,9.10773906]
[1759240123066,48.22494414,209.65,209.53,4.33570861]
[1759240123067,19.3,209.55,209.53,4.33570861]
[1759240123471,0.68,209.54,209.52,4.7727914]
[1759240123774,19.3,209.54,209.53,4.33570861]
[1759240124370,19.98,209.54,209.53,4.33570861]
[1759240125251,19.98,209.54,209.53,9.10829487]
[1759240125565,19.98,209.54,209.53,4.33570861]
[1759240126076,23.84823444,209.66,209.53,4.33570861]
[1759240126077,19.3,209.59,209.53,45.40829487]
[1759240126260,19.3,209.59,209.58,4.33570861]
[1759240126568,19.3,209.61,209.58,4.33570861]
[1759240126749,19.3,209.61,209.56,36.3]
[1759240126750,19.3,209.61,209.6,4.33570861]
[1759240126950,19.98,209.61,209.6,4.33570861]
[1759240127660,19.98,209.61,209.6,9.10670097]
[1759240127852,19.3,209.61,209.6,9.10670097]
[1759240128456,19.98,209.61,209.55,20.8]
[1759240128671,19.3,209.58,209.56,4.77190303]
[1759240128860,19.3,209.58,209.57,4.33570861]
[1759240129255,19.3,209.58,209.57,9.10738394]
[1759240129592,19.3,209.64,209.57,21.03657227]
[1759240129871,19.3,209.64,209.62,4.33570861]
[1759240130249,19.3,209.59,209.55,25.5719441]
[1759240130451,19.3,209.55,209.44,14.20621423]
[1759240130659,19.3,209.53,209.52,4.33570861]
[1759240131049,19.3,209.53,209.52,25.13570861]
[1759240131266,19.3,209.55,209.52,29.90852266]
[1759240131482,19.3,209.55,209.54,4.33570861]
[1759240131851,19.3,209.53,209.52,37.50484917]
[1759240132073,19.3,209.53,209.52,29.90852266]
[1759240132478,19.3,209.55,209.52,29.90852266]
[1759240132666,19.3,209.55,209.52,25.57281405]
[1759240132873,19.3,209.53,209.52,25.57281405]
[1759240133065,19.3,209.51,209.49,20.8]
[1759240133378,19.3,209.51,209.49,4.77345873]
[1759240133681,19.3,209.51,209.5,20.8]
[1759240133879,19.3,209.51,209.5,4.33570861]
[1759240134058,19.98,209.51,209.5,4.33570861]
[1759240134379,19.3,209.51,209.5,4.33570861]
[1759240134573,19.98,209.51,209.47,25.57378627]
[1759240134786,19.3,209.49,209.47,25.57378627]
[1759240134991,19.3,209.49,209.47,4.77378627]
[1759240134992,19.98,209.49,209.47,4.77378627]
[1759240135289,19.3,209.49,209.45,16.71043207]
[1759240135451,19.3,209.46,209.45,52.99043207]
[1759240135649,19.3,209.46,209.44,40.12250619]
[1759240135650,19.98,209.46,209.44,40.12250619]
[1759240135951,19.98,209.46,209.45,4.33570861]
[1759240137080,19.3,209.46,209.45,4.33570861]
[1759240137263,19.3,209.46,209.45,9.11011777]
[1759240138075,19.3,209.48,209.45,21.04614068]
[1759240138384,19.3,209.48,209.47,4.33570861]
[1759240138882,19.3,209.48,209.46,4.33570861]
[1759240139185,0.68,209.47,209.46,4.33570861]
[1759240139685,19.3,209.48,209.46,9.10988983]
[1759240139983,19.98,209.48,209.47,4.33570861]
[1759240140482,19.3,209.49,209.48,20.8]
[1759240140679,19.3,209.49,209.48,25.13570861]
[1759240141477,19.3,209.49,209.48,29.90943402]
[1759240141683,19.98,209.49,209.48,20.8]
[1759240141885,19.98,209.49,209.48,25.13570861]
[1759240142062,19.98,209.49,209.48,4.33570861]
[1759240142258,19.98,209.49,209.47,4.33570861]
[1759240142464,4.77304659,209.51,209.44,14.5478853]
[1759240142465,19.3,209.45,209.44,19.32252242]
[1759240142673,19.3,209.45,209.44,9.11034573]
[1759240142871,19.3,209.49,209.47,20.8]
[1759240143063,19.3,209.49,209.48,4.33570861]
[1759240143685,19.3,209.51,209.48,9.10943402]
[1759240143878,19.3,209.51,209.5,4.33570861]
[1759240144065,19.3,209.58,209.52,20.8]
[1759240144384,19.3,209.6,209.57,4.33570861]
[1759240144584,19.98,209.63,209.59,4.33570861]
[1759240144786,19.98,209.63,209.56,57.08]
[1759240144787,19.3,209.6,209.56,20.8]
[1759240144986,19.3,209.62,209.57,57.08]
[1759240145168,19.3,209.59,209.58,36.28]
[1759240145364,19.3,209.59,209.57,20.8]
[1759240145662,19.3,209.59,209.58,36.28]
[1759240145870,19.3,209.59,209.58,4.33570861]
[1759240146463,19.3,209.56,209.5,13.59559401]
[1759240146783,3.20671995,209.69,209.51,36.28]
[1759240146784,19.3,209.53,209.51,36.28]
[1759240146966,19.98,209.53,209.52,4.33570861]
[1759240147162,19.3,209.53,209.52,4.33570861]
[1759240147666,0.68,209.56,209.55,20.8]
[1759240147667,19.3,209.56,209.55,20.8]
[1759240147990,19.3,209.59,209.57,20.8]
[1759240148170,0.68,209.63,209.57,20.8]
[1759240148171,19.3,209.61,209.58,4.33570861]
[1759240148375,19.3,209.61,209.6,4.33570861]
[1759240148696,19.3,209.59,209.57,57.08]
[1759240148883,19.3,209.59,209.58,4.33570861]
[1759240148884,19.98,209.59,209.58,4.33570861]
[1759240149061,19.98,209.59,209.56,20.8]
[1759240149266,4.33570861,209.66,209.52,16.70484917]
[1759240149267,19.3,209.55,209.54,20.8]
[1759240149570,11.92417194,209.66,209.54,57.08]
[1759240149571,4.33570861,209.65,209.54,57.08]
[1759240149772,0.68,209.64,209.55,16.70245764]
[1759240150002,11.92275224,209.69,209.55,16.70245764]
[1759240150003,0.68,209.63,209.55,16.70245764]
[1759240150165,0.68,209.62,209.55,16.70245764]
[1759240150566,0.68,209.62,209.61,4.33570861]
[1759240150895,9.10488068,209.68,209.56,36.26]
[1759240150896,0.68,209.61,209.56,36.26]
[1759240151188,4.76917207,209.68,209.55,16.70245764]
[1759240151189,0.68,209.6,209.55,25.57213075]
[1759240151486,0.68,209.59,209.56,4.33570861]
[1759240151688,0.68,209.59,209.57,9.10738394]
[1759240151878,0.68,209.59,209.58,4.33570861]
[1759240152490,0.68,209.59,209.57,4.77167533]
[1759240152491,0.68,209.59,209.57,9.10738394]
[1759240152675,0.69,209.58,209.57,9.10738394]
[1759240153094,0.69,209.61,209.57,9.10738394]
[1759240153300,4.33570861,209.67,209.6,4.33570861]
[1759240153504,4.33570861,209.65,209.58,4.33570861]
[1759240153810,4.33570861,209.63,209.57,4.33570861]
[1759240154112,5.02570861,209.62,209.48,13.59559401]
[1759240154293,0.69,209.61,209.55,4.33570861]
[1759240154477,16.69528715,209.64,209.56,4.33570861]
[1759240154478,0.69,209.6,209.56,4.33570861]
[1759240154685,0.69,209.59,209.56,4.33570861]
[1759240154991,0.69,209.58,209.56,4.33570861]
[1759240155304,0.69,209.57,209.55,4.33570861]
[1759240155504,0.69,209.56,209.55,4.33570861]
[1759240155707,0.69,209.62,209.55,25.13570861]
[1759240156039,0.69,209.61,209.58,4.33570861]
[1759240156208,4.33570861,209.65,209.58,4.33570861]
[1759240156399,0.69,209.6,209.58,6.4036375]
[1759240156598,0.69,209.59,209.58,6.4036375]
[1759240156979,0.69,209.59,209.57,6.4036375]
[1759240157182,0.69,209.58,209.56,6.4036375]
[1759240157692,0.69,209.6,209.57,6.4036375]
[1759240158012,0.7,209.59,209.57,6.4036375]
[1759240158211,0.7,209.58,209.57,6.4036375]
[1759240158579,0.7,209.58,209.56,6.4036375]
[1759240159113,0.7,209.57,209.55,25.57203422]
[1759240159280,4.77054953,209.62,209.57,4.77167533]
[1759240159483,0.7,209.61,209.56,6.4036375]
[1759240159818,0.7,209.6,209.55,6.4036375]
[1759240160128,0.7,209.59,209.57,6.4036375]
[1759240160296,0.7,209.58,209.56,6.4036375]
[1759240160700,4.77056773,209.62,209.56,6.4036375]
[1759240160906,0.7,209.61,209.56,6.4036375]
[1759240161119,0.7,209.6,209.56,6.4036375]
[1759240161301,0.7,209.64,209.59,6.4036375]
[1759240161492,0.7,209.64,209.57,4.77167533]
[1759240161493,6.4036375,209.68,209.58,20.8]
[1759240161696,6.4036375,209.66,209.59,6.4036375]
[1759240161923,6.4036375,209.64,209.57,4.77167533]
[1759240162229,0.7,209.63,209.57,6.4036375]
[1759240162408,0.7,209.62,209.57,6.4036375]
[1759240162616,0.7,209.61,209.57,6.4036375]
[1759240162993,0.7,209.6,209.57,6.4036375]
[1759240163314,0.7,209.59,209.54,11.17597993]
[1759240163531,0.7,209.58,209.52,11.17624192]
[1759240163911,0.7,209.58,209.53,6.4036375]
[1759240164415,0.7,209.57,209.54,6.4036375]
[1759240164815,0.7,209.56,209.54,6.4036375]
[1759240165022,6.4036375,209.59,209.51,20.8]
[1759240165209,4.77235849,209.54,209.45,4.77440916]
[1759240165518,0.7,209.53,209.46,6.4036375]
[1759240165825,0.7,209.53,209.4,23.87670929]
[1759240165826,6.4036375,209.49,209.37,13.59559401]
[1759240165992,0.7,209.48,209.37,13.59559401]
[1759240166196,0.7,209.47,209.41,6.4036375]
[1759240166394,0.7,209.47,209.37,11.94013913]
[1759240166613,6.4036375,209.44,209.38,6.4036375]
[1759240166814,0.7,209.43,209.36,14.27336376]
[1759240167007,6.4036375,209.42,209.36,6.4036375]
[1759240167207,0.7,209.41,209.36,6.4036375]
[1759240167408,0.7,209.4,209.35,11.18031642]
[1759240167717,0.7,209.45,209.39,6.4036375]
[1759240167899,36.94,209.49,209.43,6.4036375]
[1759240168309,43.3436375,209.49,209.43,6.4036375]
[1759240168516,6.4036375,209.46,209.38,20.8]
[1759240168699,6.4036375,209.44,209.37,6.4036375]
[1759240168898,0.7,209.43,209.35,40.05312194]
[1759240169122,0.7,209.43,209.33,4.77694136]
[1759240169123,7.1036375,209.43,209.33,4.77694136]
[1759240169322,6.4036375,209.41,209.33,20.8]
[1759240169534,6.4036375,209.4,209.34,6.4036375]
[1759240169828,7.1036375,209.41,209.34,6.4036375]
[1759240170202,0.7,209.41,209.32,16.72081023]
[1759240170537,0.7,209.41,209.32,31.31417994]
[1759240170707,0.7,209.41,209.36,6.4036375]
[1759240171059,0.7,209.4,209.36,6.4036375]
[1759240171227,0.7,209.4,209.32,26.53680559]
[1759240171428,7.1036375,209.39,209.3,4.77767021]
[1759240171721,7.1036375,209.38,209.32,6.4036375]
[1759240171921,0.7,209.38,209.33,6.4036375]
[1759240172304,6.4036375,209.4,209.33,6.4036375]
[1759240172508,0.7,209.37,209.32,6.4036375]
[1759240172903,16.71365194,209.41,209.28,0.2]
[1759240172904,6.4036375,209.35,209.28,0.2]
[1759240173116,6.4036375,209.29,209.19,4.78019011]
[1759240173323,7.1036375,209.28,209.17,16.73247087]
[1759240173518,7.1036375,209.28,209.2,20.8]
[1759240173899,6.4036375,209.27,209.2,6.4036375]
[1759240174097,0.7,209.28,209.17,4.7808003]
[1759240174325,6.4036375,209.29,209.23,6.4036375]
[1759240174623,7.1036375,209.31,209.25,6.4036375]
[1759240174799,6.4036375,209.3,209.24,6.4036375]
[1759240174997,6.4036375,209.28,209.21,6.4036375]
[1759240175224,4.77828746,209.28,209.22,6.4036375]
[1759240175433,7.1036375,209.27,209.2,6.4036375]
[1759240175623,6.4036375,209.25,209.18,6.4036375]
[1759240176131,7.1036375,209.26,209.19,6.4036375]
[1759240176505,0.7,209.26,209.18,20.8]
[1759240176705,7.1036375,209.26,209.19,6.4036375]
[1759240177129,0.7,209.26,209.19,6.4036375]
[1759240177435,0.7,209.26,209.21,6.4036375]
[1759240177626,0.7,209.33,209.25,6.4036375]
[1759240177929,0.7,209.33,209.27,6.4036375]
[1759240178110,6.4036375,209.32,209.26,6.4036375]
[1759240178302,6.4036375,209.3,209.22,20.8]
[1759240178503,6.4036375,209.29,209.23,6.4036375]
[1759240178731,0.7,209.28,209.23,6.4036375]
[1759240178940,0.7,209.33,209.25,6.4036375]
[1759240179234,4.77760259,209.31,209.25,6.4036375]
[1759240179428,11.18124009,209.31,209.25,6.4036375]
[1759240179604,0.7,209.3,209.23,4.77942933]
[1759240179808,0.7,209.3,209.26,6.4036375]
[1759240180204,20.0,209.38,209.29,6.4036375]
[1759240180205,6.4036375,209.38,209.29,6.4036375]
[1759240180408,6.4036375,209.38,209.31,6.4036375]
[1759240180612,0.7,209.39,209.34,6.4036375]
[1759240181207,0.7,209.43,209.37,11.17987096]
[1759240181431,4.77443663,209.45,209.4,6.4036375]
[1759240181635,4.77443663,209.45,209.37,4.77623346]
[1759240181836,36.26,209.48,209.41,6.4036375]
[1759240182016,36.26,209.48,209.38,21.0]
[1759240182017,36.26,209.48,209.4,20.8]
[1759240182327,36.26,209.48,209.43,6.4036375]
[1759240182535,36.97,209.48,209.4,20.8]
[1759240182713,36.97,209.48,209.43,6.4036375]
[1759240183112,0.71,209.52,209.45,6.4036375]
[1759240183326,11.92977294,209.56,209.4,20.8]
[1759240183327,36.26,209.53,209.49,6.4036375]
[1759240183533,36.26,209.53,209.5,6.4036375]
[1759240183721,36.26,209.53,209.44,11.93659141]
[1759240183722,6.4036375,209.51,209.44,6.4036375]
[1759240184024,6.4036375,209.47,209.41,20.8]
[1759240184227,6.4036375,209.49,209.42,6.4036375]
[1759240184832,42.6436375,209.49,209.42,6.4036375]
[1759240185339,36.24,209.49,209.45,6.4036375]
[1759240185735,0.71,209.48,209.43,6.4036375]
[1759240185950,36.24,209.49,209.46,6.4036375]
[1759240186111,0.71,209.48,209.4,25.57554883]
[1759240186315,7.1136375,209.48,209.41,6.4036375]
[1759240186511,7.1136375,209.48,209.4,4.77548868]
[1759240186512,0.71,209.48,209.4,4.77548868]
[1759240186824,0.71,209.48,209.43,6.4036375]
[1759240187531,0.71,209.48,209.42,27.2036375]
[1759240187532,4.77395331,209.47,209.42,27.2036375]
[1759240187738,41.0136833,209.49,209.43,6.4036375]
[1759240188343,36.24,209.49,209.44,6.4036375]
[1759240188511,41.01353398,209.49,209.43,6.4036375]
[1759240188711,6.4036375,209.47,209.42,20.8]
[1759240188913,0.71,209.46,209.42,20.8]
[1759240189222,0.71,209.46,209.4,6.4036375]
[1759240189420,11.17804666,209.45,209.39,6.4036375]
[1759240189621,11.17804666,209.45,209.37,6.4036375]
[1759240189622,7.1136375,209.44,209.37,6.4036375]
[1759240189933,7.1136375,209.43,209.36,6.4036375]
[1759240190540,6.4036375,209.39,209.33,6.4036375]
[1759240190744,6.4036375,209.39,209.29,0.2]
[1759240190745,0.71,209.38,209.32,6.4036375]
[1759240191120,7.1136375,209.38,209.31,6.4036375]
[1759240191319,4.77623346,209.37,209.31,11.1811864]
[1759240191640,4.77623346,209.37,209.31,6.4036375]
[1759240192716,0.71,209.36,209.3,27.2036375]
[1759240193342,5.48655686,209.36,209.3,27.2036375]
[1759240193524,11.89019436,209.36,209.3,20.8]
[1759240193717,11.89019436,209.36,209.25,4.77897252]
[1759240193718,43.3536375,209.35,209.25,4.77897252]
[1759240193925,6.4036375,209.34,209.27,6.4036375]
[1759240194136,0.71,209.33,209.27,6.4036375]
[1759240194725,5.4873005,209.33,209.27,6.4036375]
[1759240194932,0.71,209.33,209.27,4.77850714]
[1759240195133,0.71,209.33,209.24,32.94760074]
[1759240195134,11.89081258,209.33,209.26,6.4036375]
[1759240195327,6.4036375,209.32,209.24,25.57918185]
[1759240195524,11.89081258,209.33,209.24,25.57918185]
[1759240195724,7.1136375,209.32,209.25,6.4036375]
[1759240196221,0.71,209.35,209.28,6.4036375]
[1759240196417,26.97,209.35,209.3,6.4036375]
[1759240196637,0.71,209.34,209.29,6.4036375]
[1759240196830,0.71,209.33,209.29,6.4036375]
[1759240197333,4.77692545,209.34,209.29,6.4036375]
[1759240197539,0.71,209.33,209.29,6.4036375]
[1759240197750,0.71,209.32,209.26,25.57874414]
[1759240197930,0.71,209.32,209.23,11.94835454]
[1759240197931,0.71,209.31,209.23,32.74835454]
[1759240198125,0.71,209.31,209.27,6.4036375]
[1759240198850,0.71,209.3,209.27,6.4036375]
[1759240199046,11.18056295,209.34,209.24,4.77920091]
[1759240199047,0.71,209.34,209.28,6.4036375]
[1759240199220,0.71,209.34,209.3,6.4036375]
[1759240199421,0.71,209.34,209.25,4.77897252]
[1759240199422,36.95,209.34,209.31,6.4036375]
[1759240199743,0.71,209.33,209.28,6.4036375]
[1759240199926,0.71,209.32,209.28,6.4036375]
[1759240200127,0.71,209.31,209.28,6.4036375]
[1759240200322,0.71,209.3,209.28,6.4036375]
[1759240200529,0.71,209.29,209.25,6.4036375]
[1759240200726,6.4036375,209.31,209.19,4.78034322]
[1759240200727,0.71,209.28,209.23,6.4036375]
[1759240200928,7.1136375,209.31,209.21,20.8]
[1759240201145,17.43240802,209.3,209.24,6.4036375]
[1759240201829,17.43240802,209.3,209.2,0.2]
[1759240201830,0.71,209.3,209.26,6.4036375]
[1759240202037,0.71,209.29,209.21,20.8]
[1759240202346,0.71,209.29,209.23,6.4036375]
[1759240202645,0.71,209.29,209.22,6.4036375]
[1759240202646,36.95,209.28,209.22,6.4036375]
[1759240202852,36.95,209.28,209.23,6.4036375]
[1759240203027,0.71,209.28,209.25,6.4036375]
[1759240203230,36.95,209.28,209.25,6.4036375]
[1759240203429,36.95,209.28,209.21,4.7796591]
[1759240203430,41.01832396,209.28,209.24,6.4036375]
[1759240203630,0.71,209.27,209.24,6.4036375]
[1759240203852,36.24,209.28,209.26,6.4036375]
[1759240204041,36.24,209.3,209.27,6.4036375]
[1759240204235,0.71,209.32,209.29,6.4036375]
[1759240204439,36.24,209.33,209.26,0.2]
[1759240204632,36.24,209.33,209.24,20.8]
[1759240204954,0.71,209.32,209.27,6.4036375]
[1759240205157,6.4036375,209.3,209.21,20.8]
[1759240205353,0.71,209.29,209.24,6.4036375]
[1759240205544,0.71,209.29,209.18,4.78034401]
[1759240205545,0.71,209.28,209.18,4.78034401]
[1759240205746,0.71,209.28,209.16,0.2]
[1759240205747,6.4036375,209.26,209.19,6.4036375]
[1759240205944,43.3536375,209.27,209.2,6.4036375]
[1759240206244,6.4036375,209.23,209.16,0.2]
[1759240206450,6.4036375,209.19,209.16,0.2]
[1759240206649,43.3536375,209.18,209.16,0.2]
[1759240206954,42.6436375,209.17,209.16,0.2]
[1759240207134,41.7308003,209.17,209.16,0.2]
[1759240207456,36.95,209.17,209.16,0.2]
[1759240208155,0.71,209.2,209.16,0.2]
[1759240208366,36.95,209.19,209.16,0.2]
[1759240208731,36.24,209.19,209.16,0.2]
[1759240208948,7.1136375,209.18,209.16,0.2]
[1759240209155,11.1844378,209.17,209.16,0.2]
[1759240209561,11.8944378,209.17,209.16,0.2]
[1759240209864,0.71,209.17,209.16,0.2]
[1759240210657,43.3536375,209.17,209.16,0.2]
[1759240211330,48.1344378,209.17,209.16,0.2]
[1759240211549,4.78034642,209.19,209.16,0.2]
[1759240211857,36.24,209.17,209.16,0.2]
[1759240212044,0.71,209.18,209.16,0.2]
[1759240212242,36.24,209.17,209.16,0.2]
[1759240212447,36.92,209.17,209.16,0.2]
[1759240213445,43.3236375,209.17,209.16,0.2]
[1759240213755,41.7008003,209.17,209.16,0.2]
[1759240213955,48.1044378,209.17,209.16,0.2]
[1759240214153,41.7008003,209.17,209.16,0.2]
[1759240214360,48.1044378,209.17,209.16,0.2]
[1759240215864,61.70003181,209.17,209.16,1e-08]
[1759240216243,59.65174589,209.17,209.16,1e-08]
[1759240216469,59.65174589,209.17,209.1,0.2]
[1759240216470,20.8,209.14,209.1,1e-08]
[1759240216672,4.35535158,209.11,209.1,1e-08]
[1759240217162,4.35535158,209.11,209.07,0.2]
[1759240217163,38.75094559,209.08,209.07,1e-08]
[1759240217344,38.75094559,209.08,209.01,0.2]
[1759240217345,13.59559401,209.07,209.01,0.2]
[1759240217538,9.13912502,209.04,209.01,0.2]
[1759240217744,58.97471903,209.04,209.01,0.2]
[1759240217944,59.67471903,209.04,209.01,0.2]
[1759240218246,0.7,209.04,209.01,0.2]
[1759240218439,54.89094559,209.04,209.01,0.2]
[1759240218770,13.59559401,209.02,209.01,1e-08]
[1759240218937,13.59559401,208.98,208.84,0.2]
[1759240219143,17.95094559,208.96,208.89,4.35535158]
[1759240219343,36.94,208.97,208.9,4.35535158]
[1759240219561,4.7856049,208.96,208.77,20.8]
[1759240219745,4.35535158,208.94,208.87,4.35535158]
[1759240219953,36.24,208.93,208.87,4.35535158]
[1759240220147,41.29535158,208.93,208.82,0.2]
[1759240220337,41.29535158,208.93,208.86,4.35535158]
[1759240220543,36.94,208.93,208.88,4.35535158]
[1759240220745,36.24,208.93,208.89,4.35535158]
[1759240221102,36.24,208.93,208.81,20.8]
[1759240221103,0.7,208.92,208.87,4.35535158]
[1759240221244,4.35535158,209.02,208.81,20.8]
[1759240221245,36.24,208.94,208.91,4.35535158]
[1759240221784,13.59559401,209.01,208.93,4.35535158]
[1759240221947,36.94,209.0,208.91,20.8]
[1759240222150,34.39559401,209.03,208.91,20.8]
[1759240222151,5.48403313,209.03,208.91,20.8]
[1759240222363,5.48403313,209.03,208.86,30.35323069]
[1759240222364,4.35535158,208.99,208.87,0.2]
[1759240222543,4.35535158,208.97,208.9,4.35535158]
[1759240222743,30.11535158,208.98,208.91,4.35535158]
[1759240222940,4.35535158,208.97,208.87,0.2]
[1759240223180,25.76,208.98,208.93,4.35535158]
[1759240223349,36.24,208.98,208.9,0.2]
[1759240223671,36.24,208.98,208.94,4.35535158]
[1759240223972,36.24,209.01,208.97,25.15535158]
[1759240224171,36.24,209.01,208.97,20.8]
[1759240224381,36.24,209.01,208.99,4.35535158]
[1759240224678,36.24,209.01,208.94,20.8]
[1759240224887,36.24,209.01,208.97,4.35535158]
[1759240225040,36.24,209.01,208.91,16.75362595]
[1759240225041,0.7,209.0,208.95,4.35535158]
[1759240225241,0.7,208.99,208.94,4.35535158]
[1759240225462,36.24,209.01,208.98,4.35535158]
[1759240225653,36.24,209.01,208.99,4.35535158]
[1759240225855,36.24,209.01,209.0,4.35535158]
[1759240226087,36.24,209.01,208.99,4.35535158]
[1759240226244,36.24,209.01,208.97,25.58515865]
[1759240226440,36.24,209.01,208.99,4.35535158]
[1759240227251,62.74132328,209.16,208.99,4.35535158]
[1759240227252,20.8,209.11,208.99,4.35535158]
[1759240227470,11.95289214,209.16,209.08,4.35535158]
[1759240227471,4.35535158,209.16,209.08,4.35535158]
[1759240227672,35.02,209.15,209.11,4.35535158]
[1759240227883,35.02,209.15,209.12,4.35535158]
[1759240228069,35.02,209.15,209.07,16.94080451]
[1759240228272,35.02,209.15,209.12,4.35535158]
[1759240228488,35.02,209.15,209.14,4.35535158]
[1759240228690,35.02,209.15,209.13,4.35535158]
[1759240228878,0.8,209.22,209.14,4.35535158]
[1759240229081,36.24,209.19,209.15,4.35535158]
[1759240229262,36.24,209.19,209.16,4.35535158]
[1759240229584,36.24,209.19,209.11,21.0]
[1759240229585,41.02042005,209.19,209.14,4.35535158]
[1759240229790,41.02042005,209.19,209.13,4.35535158]
[1759240229964,0.7,209.18,209.13,4.35535158]
[1759240230690,41.02037357,209.19,209.13,4.35535158]